[Event "Titled Tuesday Blitz August 09 Early 2022"]
[White "Malek, Jan"]
[Black "Mika, Tomasz"]
[WhiteFideId "21864080"]
[BlackFideId "1132970"]
[WhiteElo "2143"]
[BlackElo "2126"]
[Result "1-0"]
[Round "02"]
[TimeControl "180+1"]
[Date "2022.08.09"]
[WhiteClock "0:00:46"]
[BlackClock "0:00:02"]

1. e4 {[%clk 0:03:00]}  c6 {[%clk 0:02:58]} 2. d4 {[%clk 0:02:56]}  d5 {[%clk 0:02:58]} 3. f3 {[%clk 0:02:57]}  dxe4 {[%clk 0:02:56]} 4. fxe4 {[%clk 0:02:57]}  e5 {[%clk 0:02:57]} 5. Nf3 {[%clk 0:02:58]}  Bg4 {[%clk 0:02:57]} 6. c3 {[%clk 0:02:58]}  Nd7 {[%clk 0:02:54]} 7. Bc4 {[%clk 0:02:57]}  Bd6 {[%clk 0:02:50]} 8. O-O {[%clk 0:02:56]}  Qe7 {[%clk 0:02:38]} 9. Qb3 {[%clk 0:02:51]}  Ngf6 {[%clk 0:02:26]} 10. Qxb7 {[%clk 0:02:15]}  O-O {[%clk 0:02:26]} 11. Nbd2 {[%clk 0:02:01]}  Rab8 {[%clk 0:02:17]} 12. Qxc6 {[%clk 0:01:53]}  Rfc8 {[%clk 0:02:12]} 13. Qa4 {[%clk 0:01:52]}  Nb6 {[%clk 0:02:08]} 14. Qa6 {[%clk 0:01:51]}  Rc7 {[%clk 0:00:50]} 15. Bd3 {[%clk 0:01:37]}  Bd7 {[%clk 0:00:35]} 16. Bc2 {[%clk 0:01:16]}  exd4 {[%clk 0:00:28]} 17. Nxd4 {[%clk 0:01:16]}  Bc5 {[%clk 0:00:23]} 18. Qd3 {[%clk 0:01:13]}  Rd8 {[%clk 0:00:17]} 19. Nf3 {[%clk 0:01:12]}  Bg4 {[%clk 0:00:17]} 20. Bg5 {[%clk 0:01:11]}  h6 {[%clk 0:00:16]} 21. Bxf6 {[%clk 0:01:10]}  Qxf6 {[%clk 0:00:17]} 22. e5 {[%clk 0:01:09]}  Qg6 {[%clk 0:00:08]} 23. Qxg6 {[%clk 0:01:05]}  fxg6 {[%clk 0:00:09]} 24. Bb3+ {[%clk 0:00:59]}  Kh7 {[%clk 0:00:08]} 25. Kh1 {[%clk 0:00:59]}  Nd5 {[%clk 0:00:06]} 26. Rae1 {[%clk 0:00:55]}  Nf4 {[%clk 0:00:06]} 27. Re4 {[%clk 0:00:53]}  Bxf3 {[%clk 0:00:05]} 28. Rxf4 {[%clk 0:00:50]}  Bb7 {[%clk 0:00:05]} 29. Ne6 {[%clk 0:00:50]}  Ba6 {[%clk 0:00:02]} 30. Nxc7 {[%clk 0:00:46]}  Bxf1 {[%clk 0:00:02]} 31. Rxf1 {[%clk 0:00:46]} 1-0


[Site "https://www.chess.com"]

[Event "Titled Tuesday Blitz August 09 Early 2022"]
[White "Malka, Samuel"]
[Black "Ernst, Sipke"]
[WhiteFideId "20643675"]
[BlackFideId "1004689"]
[WhiteElo "2513"]
[BlackElo "2436"]
[Result "0-1"]
[Round "02"]
[TimeControl "180+1"]
[Date "2022.08.09"]
[WhiteClock "0:00:08"]
[BlackClock "0:00:58"]

1. Nf3 {[%clk 0:02:53]}  d5 {[%clk 0:02:58]} 2. g3 {[%clk 0:02:53]}  g6 {[%clk 0:02:57]} 3. Bg2 {[%clk 0:02:49]}  c6 {[%clk 0:02:55]} 4. O-O {[%clk 0:02:33]}  Bg7 {[%clk 0:02:54]} 5. d3 {[%clk 0:02:25]}  e5 {[%clk 0:02:52]} 6. c4 {[%clk 0:02:26]}  Ne7 {[%clk 0:02:34]} 7. cxd5 {[%clk 0:02:18]}  cxd5 {[%clk 0:02:32]} 8. Nc3 {[%clk 0:02:18]}  Nbc6 {[%clk 0:02:31]} 9. Bg5 {[%clk 0:02:07]}  f6 {[%clk 0:02:29]} 10. Bd2 {[%clk 0:02:03]}  Be6 {[%clk 0:02:29]} 11. Na4 {[%clk 0:01:56]}  b6 {[%clk 0:02:24]} 12. b4 {[%clk 0:01:49]}  Qd7 {[%clk 0:02:18]} 13. b5 {[%clk 0:01:42]}  Nd8 {[%clk 0:02:18]} 14. Rb1 {[%clk 0:01:34]}  Nb7 {[%clk 0:02:08]} 15. Bb4 {[%clk 0:01:29]}  Nd6 {[%clk 0:02:03]} 16. Nc3 {[%clk 0:01:08]}  O-O {[%clk 0:01:52]} 17. Nd2 {[%clk 0:01:02]}  Rac8 {[%clk 0:01:48]} 18. Qb3 {[%clk 0:00:48]}  d4 {[%clk 0:01:29]} 19. Nd5 {[%clk 0:00:48]}  Kh8 {[%clk 0:01:30]} 20. Qa3 {[%clk 0:00:47]}  Nxb5 {[%clk 0:01:21]} 21. Nxe7 {[%clk 0:00:29]}  Nxa3 {[%clk 0:01:20]} 22. Bxa3 {[%clk 0:00:30]}  Rc2 {[%clk 0:01:18]} 23. Nc4 {[%clk 0:00:15]}  Rxa2 {[%clk 0:01:01]} 24. Bc6 {[%clk 0:00:14]}  Qd8 {[%clk 0:01:01]} 25. Nxg6+ {[%clk 0:00:06]}  hxg6 {[%clk 0:01:00]} 26. Bxf8 {[%clk 0:00:07]}  Qxf8 {[%clk 0:00:59]} 27. Be4 {[%clk 0:00:07]}  f5 {[%clk 0:00:59]} 28. Bf3 {[%clk 0:00:07]}  e4 {[%clk 0:00:59]} 29. dxe4 {[%clk 0:00:08]}  Bxc4 {[%clk 0:00:58]} 0-1


[Site "https://www.chess.com"]

[Event "Titled Tuesday Blitz August 09 Early 2022"]
[White "Mardov, Dimitar"]
[Black "Ezat, Mohamed"]
[WhiteFideId "30919495"]
[BlackFideId "10600906"]
[WhiteElo "2185"]
[BlackElo "2386"]
[Result "0-1"]
[Round "02"]
[TimeControl "180+1"]
[Date "2022.08.09"]
[WhiteClock "0:00:19"]
[BlackClock "0:00:20"]

1. d4 {[%clk 0:03:00]}  Nf6 {[%clk 0:02:59]} 2. c4 {[%clk 0:03:01]}  g6 {[%clk 0:02:59]} 3. f3 {[%clk 0:02:59]}  Bg7 {[%clk 0:03:00]} 4. e4 {[%clk 0:02:59]}  d6 {[%clk 0:03:00]} 5. Nc3 {[%clk 0:02:59]}  O-O {[%clk 0:03:01]} 6. Be3 {[%clk 0:03:00]}  Nc6 {[%clk 0:03:00]} 7. d5 {[%clk 0:03:00]}  Ne5 {[%clk 0:02:59]} 8. h3 {[%clk 0:02:57]}  c5 {[%clk 0:02:44]} 9. f4 {[%clk 0:02:53]}  Ned7 {[%clk 0:02:44]} 10. Nf3 {[%clk 0:02:52]}  Nh5 {[%clk 0:02:39]} 11. Kf2 {[%clk 0:02:44]}  Ndf6 {[%clk 0:01:32]} 12. e5 {[%clk 0:02:09]}  dxe5 {[%clk 0:01:28]} 13. fxe5 {[%clk 0:02:10]}  Nd7 {[%clk 0:01:28]} 14. g4 {[%clk 0:02:08]}  Nxe5 {[%clk 0:01:28]} 15. gxh5 {[%clk 0:02:08]}  e6 {[%clk 0:01:29]} 16. h6 {[%clk 0:02:04]}  Bf6 {[%clk 0:01:26]} 17. Bg2 {[%clk 0:02:00]}  Nxc4 {[%clk 0:01:20]} 18. Bxc5 {[%clk 0:02:00]}  Re8 {[%clk 0:01:08]} 19. Re1 {[%clk 0:01:11]}  Nxb2 {[%clk 0:01:06]} 20. Qc2 {[%clk 0:01:09]}  Qa5 {[%clk 0:00:50]} 21. Ne4 {[%clk 0:01:06]}  Bh8 {[%clk 0:00:47]} 22. Bd4 {[%clk 0:01:03]}  e5 {[%clk 0:00:45]} 23. Qxb2 {[%clk 0:00:58]}  Bf5 {[%clk 0:00:45]} 24. Bxe5 {[%clk 0:00:56]}  Rxe5 {[%clk 0:00:41]} 25. Nxe5 {[%clk 0:00:54]}  Re8 {[%clk 0:00:40]} 26. Ng4 {[%clk 0:00:42]}  Rxe4 {[%clk 0:00:27]} 27. Rxe4 {[%clk 0:00:27]}  Qc5+ {[%clk 0:00:27]} 28. Kf1 {[%clk 0:00:20]}  Bxe4 {[%clk 0:00:23]} 29. Nf6+ {[%clk 0:00:19]}  Bxf6 {[%clk 0:00:18]} 30. Qxf6 {[%clk 0:00:20]}  Bd3+ {[%clk 0:00:19]} 31. Ke1 {[%clk 0:00:17]}  Qe3+ {[%clk 0:00:19]} 32. Kd1 {[%clk 0:00:18]}  Qe2+ {[%clk 0:00:20]} 33. Kc1 {[%clk 0:00:19]}  Qc2# {[%clk 0:00:20]} 0-1


[Site "https://www.chess.com"]

[Event "Titled Tuesday Blitz August 09 Early 2022"]
[White "Martinez Alcantara, Jose Eduardo"]
[Black "Skawinski, Arkadiusz"]
[WhiteFideId "3805662"]
[BlackFideId "1126415"]
[WhiteElo "2703"]
[BlackElo "2149"]
[Result "1-0"]
[Round "02"]
[TimeControl "180+1"]
[Date "2022.08.09"]
[WhiteClock "0:00:04"]
[BlackClock "0:00:15"]

1. e4 {[%clk 0:03:00]}  e6 {[%clk 0:02:58]} 2. d4 {[%clk 0:03:00]}  d5 {[%clk 0:02:58]} 3. Nd2 {[%clk 0:02:59]}  c5 {[%clk 0:02:58]} 4. Ngf3 {[%clk 0:03:00]}  cxd4 {[%clk 0:02:58]} 5. Nxd4 {[%clk 0:03:01]}  Nf6 {[%clk 0:02:58]} 6. exd5 {[%clk 0:03:00]}  Qxd5 {[%clk 0:02:58]} 7. Nb5 {[%clk 0:02:46]}  Na6 {[%clk 0:02:58]} 8. Nc3 {[%clk 0:02:41]}  Qe5+ {[%clk 0:02:52]} 9. Be2 {[%clk 0:02:40]}  Bb4 {[%clk 0:02:44]} 10. Nc4 {[%clk 0:02:33]}  Bxc3+ {[%clk 0:02:12]} 11. bxc3 {[%clk 0:02:34]}  Qxc3+ {[%clk 0:02:13]} 12. Bd2 {[%clk 0:02:34]}  Qd4 {[%clk 0:02:13]} 13. c3 {[%clk 0:02:24]}  Qd8 {[%clk 0:02:04]} 14. Qa4+ {[%clk 0:02:23]}  Qd7 {[%clk 0:01:47]} 15. Qa3 {[%clk 0:02:17]}  Qe7 {[%clk 0:01:37]} 16. Nd6+ {[%clk 0:02:16]}  Kf8 {[%clk 0:01:38]} 17. Rd1 {[%clk 0:02:03]}  Kg8 {[%clk 0:01:30]} 18. O-O {[%clk 0:01:56]}  Ne8 {[%clk 0:01:24]} 19. Bc1 {[%clk 0:01:45]}  Nxd6 {[%clk 0:01:09]} 20. Qxd6 {[%clk 0:01:39]}  Qxd6 {[%clk 0:01:08]} 21. Rxd6 {[%clk 0:01:40]}  h6 {[%clk 0:01:04]} 22. Bf4 {[%clk 0:01:23]}  Kh7 {[%clk 0:01:00]} 23. Bd3+ {[%clk 0:01:22]}  f5 {[%clk 0:01:00]} 24. Rd1 {[%clk 0:00:55]}  Nc5 {[%clk 0:00:20]} 25. Bc2 {[%clk 0:00:55]}  b6 {[%clk 0:00:20]} 26. Be3 {[%clk 0:00:56]}  Re8 {[%clk 0:00:17]} 27. g4 {[%clk 0:00:52]}  Ne4 {[%clk 0:00:16]} 28. Rc6 {[%clk 0:00:44]}  Re7 {[%clk 0:00:14]} 29. Bxe4 {[%clk 0:00:20]}  fxe4 {[%clk 0:00:14]} 30. Rcd6 {[%clk 0:00:21]}  Bb7 {[%clk 0:00:12]} 31. Rd7 {[%clk 0:00:21]}  Rae8 {[%clk 0:00:13]} 32. c4 {[%clk 0:00:19]}  Bc6 {[%clk 0:00:12]} 33. R7d6 {[%clk 0:00:20]}  Ba4 {[%clk 0:00:12]} 34. R1d4 {[%clk 0:00:19]}  Bc2 {[%clk 0:00:13]} 35. Rd2 {[%clk 0:00:09]}  Bd3 {[%clk 0:00:12]} 36. c5 {[%clk 0:00:09]}  bxc5 {[%clk 0:00:13]} 37. Bxc5 {[%clk 0:00:10]}  Rc7 {[%clk 0:00:13]} 38. Be3 {[%clk 0:00:11]}  Rec8 {[%clk 0:00:14]} 39. Kg2 {[%clk 0:00:11]}  Rc1 {[%clk 0:00:14]} 40. Rd7 {[%clk 0:00:11]}  Bf1+ {[%clk 0:00:15]} 41. Kg3 {[%clk 0:00:11]}  Bd3 {[%clk 0:00:16]} 42. Rxa7 {[%clk 0:00:02]}  R8c7 {[%clk 0:00:17]} 43. Rxc7 {[%clk 0:00:02]}  Rxc7 {[%clk 0:00:18]} 44. a4 {[%clk 0:00:03]}  Rc4 {[%clk 0:00:14]} 45. Ra2 {[%clk 0:00:02]}  Bc2 {[%clk 0:00:13]} 46. a5 {[%clk 0:00:02]}  Ra4 {[%clk 0:00:14]} 47. Rxc2 {[%clk 0:00:03]}  Rxa5 {[%clk 0:00:14]} 48. Rc7 {[%clk 0:00:03]}  Kg6 {[%clk 0:00:13]} 49. Rc4 {[%clk 0:00:04]}  e5 {[%clk 0:00:14]} 50. Rxe4 {[%clk 0:00:04]}  h5 {[%clk 0:00:15]} 1-0


[Site "https://www.chess.com"]

[Event "Titled Tuesday Blitz August 09 Early 2022"]
[White "Matveeva, Olga"]
[Black "Shuvalov, Evgenij"]
[WhiteFideId "24107018"]
[BlackFideId "4187237"]
[WhiteElo "2052"]
[BlackElo "2058"]
[Result "1-0"]
[Round "02"]
[TimeControl "180+1"]
[Date "2022.08.09"]
[WhiteClock "0:00:47"]
[BlackClock "0:00:12"]

1. d4 {[%clk 0:02:59]}  Nf6 {[%clk 0:02:59]} 2. c4 {[%clk 0:02:59]}  c5 {[%clk 0:02:59]} 3. d5 {[%clk 0:02:59]}  b5 {[%clk 0:03:00]} 4. cxb5 {[%clk 0:02:59]}  a6 {[%clk 0:03:00]} 5. bxa6 {[%clk 0:03:00]}  Bxa6 {[%clk 0:03:01]} 6. Nc3 {[%clk 0:03:00]}  d6 {[%clk 0:03:00]} 7. g3 {[%clk 0:03:00]}  Nbd7 {[%clk 0:02:59]} 8. Rb1 {[%clk 0:02:56]}  g6 {[%clk 0:02:57]} 9. Bg2 {[%clk 0:02:55]}  Bg7 {[%clk 0:02:57]} 10. Nf3 {[%clk 0:02:54]}  O-O {[%clk 0:02:55]} 11. O-O {[%clk 0:02:54]}  Qa5 {[%clk 0:02:52]} 12. Bd2 {[%clk 0:02:54]}  Rfb8 {[%clk 0:02:44]} 13. Qc2 {[%clk 0:02:54]}  Ng4 {[%clk 0:02:07]} 14. b3 {[%clk 0:02:48]}  Qa3 {[%clk 0:02:00]} 15. h3 {[%clk 0:02:41]}  Nge5 {[%clk 0:01:57]} 16. Ne1 {[%clk 0:02:41]}  Nf6 {[%clk 0:01:48]} 17. Qd1 {[%clk 0:02:35]}  c4 {[%clk 0:01:40]} 18. b4 {[%clk 0:02:28]}  Rxb4 {[%clk 0:01:34]} 19. Nc2 {[%clk 0:01:59]}  Rxb1 {[%clk 0:01:30]} 20. Qxb1 {[%clk 0:01:58]}  Qc5 {[%clk 0:01:25]} 21. Be3 {[%clk 0:01:55]}  Qa5 {[%clk 0:01:23]} 22. Nb4 {[%clk 0:01:51]}  Bb7 {[%clk 0:01:20]} 23. Rc1 {[%clk 0:01:41]}  Rc8 {[%clk 0:00:56]} 24. Nc6 {[%clk 0:01:34]}  Bxc6 {[%clk 0:00:55]} 25. dxc6 {[%clk 0:01:34]}  h5 {[%clk 0:00:37]} 26. Qb7 {[%clk 0:01:31]}  Qc7 {[%clk 0:00:36]} 27. Nb5 {[%clk 0:01:26]}  Qd8 {[%clk 0:00:27]} 28. c7 {[%clk 0:01:17]}  Qd7 {[%clk 0:00:27]} 29. Bb6 {[%clk 0:01:07]}  d5 {[%clk 0:00:20]} 30. Na7 {[%clk 0:01:04]}  Rxc7 {[%clk 0:00:16]} 31. Qxc7 {[%clk 0:01:03]}  Qf5 {[%clk 0:00:15]} 32. Qd8+ {[%clk 0:00:59]}  Bf8 {[%clk 0:00:15]} 33. Bxd5 {[%clk 0:00:55]}  Neg4 {[%clk 0:00:13]} 34. hxg4 {[%clk 0:00:52]}  Qxd5 {[%clk 0:00:13]} 35. Qxd5 {[%clk 0:00:51]}  Nxd5 {[%clk 0:00:14]} 36. gxh5 {[%clk 0:00:52]}  gxh5 {[%clk 0:00:15]} 37. Bd4 {[%clk 0:00:51]}  Nb4 {[%clk 0:00:13]} 38. Rxc4 {[%clk 0:00:50]}  Nxa2 {[%clk 0:00:13]} 39. Be3 {[%clk 0:00:48]}  e6 {[%clk 0:00:13]} 40. Nc6 {[%clk 0:00:48]}  Nb4 {[%clk 0:00:12]} 41. Nxb4 {[%clk 0:00:47]} 1-0


[Site "https://www.chess.com"]

[Event "Titled Tuesday Blitz August 09 Early 2022"]
[White "Mortazavi, Ali"]
[Black "Rohith Krishna S"]
[WhiteFideId "401323"]
[BlackFideId "46617051"]
[WhiteElo "2339"]
[BlackElo "2118"]
[Result "1-0"]
[Round "02"]
[TimeControl "180+1"]
[Date "2022.08.09"]
[WhiteClock "0:00:14"]
[BlackClock "0:00:29"]

1. Nf3 {[%clk 0:03:00]}  Nf6 {[%clk 0:02:59]} 2. g3 {[%clk 0:03:01]}  b5 {[%clk 0:02:58]} 3. Bg2 {[%clk 0:03:01]}  Bb7 {[%clk 0:02:58]} 4. O-O {[%clk 0:03:02]}  e6 {[%clk 0:02:58]} 5. d3 {[%clk 0:03:03]}  d5 {[%clk 0:02:58]} 6. Nbd2 {[%clk 0:03:00]}  Be7 {[%clk 0:02:55]} 7. a4 {[%clk 0:03:01]}  b4 {[%clk 0:02:54]} 8. e4 {[%clk 0:02:56]}  a5 {[%clk 0:02:53]} 9. e5 {[%clk 0:02:52]}  Nfd7 {[%clk 0:02:52]} 10. Re1 {[%clk 0:02:51]}  O-O {[%clk 0:02:52]} 11. h4 {[%clk 0:02:50]}  Re8 {[%clk 0:02:52]} 12. Nf1 {[%clk 0:02:48]}  c5 {[%clk 0:02:51]} 13. N1h2 {[%clk 0:02:48]}  Nc6 {[%clk 0:02:51]} 14. Ng4 {[%clk 0:02:49]}  Ba6 {[%clk 0:02:51]} 15. Bg5 {[%clk 0:02:43]}  Qb6 {[%clk 0:02:48]} 16. h5 {[%clk 0:02:36]}  Bf8 {[%clk 0:02:47]} 17. h6 {[%clk 0:02:35]}  g6 {[%clk 0:02:47]} 18. Bf6 {[%clk 0:02:20]}  Rec8 {[%clk 0:02:33]} 19. c3 {[%clk 0:02:15]}  bxc3 {[%clk 0:02:16]} 20. bxc3 {[%clk 0:02:15]}  Qb2 {[%clk 0:02:17]} 21. Rc1 {[%clk 0:02:14]}  Ne7 {[%clk 0:01:59]} 22. c4 {[%clk 0:01:43]}  d4 {[%clk 0:01:31]} 23. Ng5 {[%clk 0:01:31]}  Rab8 {[%clk 0:01:24]} 24. Bxe7 {[%clk 0:00:54]}  Bxe7 {[%clk 0:01:23]} 25. Ne4 {[%clk 0:00:54]}  Qb6 {[%clk 0:01:02]} 26. Qf3 {[%clk 0:00:51]}  Qd8 {[%clk 0:01:03]} 27. Rb1 {[%clk 0:00:46]}  Rb4 {[%clk 0:01:03]} 28. Rxb4 {[%clk 0:00:46]}  axb4 {[%clk 0:01:01]} 29. Qf4 {[%clk 0:00:37]}  Rb8 {[%clk 0:00:58]} 30. Ngf6+ {[%clk 0:00:35]}  Nxf6 {[%clk 0:00:55]} 31. exf6 {[%clk 0:00:34]}  Bf8 {[%clk 0:00:54]} 32. Ng5 {[%clk 0:00:34]}  Bxh6 {[%clk 0:00:53]} 33. Qh4 {[%clk 0:00:26]}  Qf8 {[%clk 0:00:50]} 34. Nxe6 {[%clk 0:00:20]}  fxe6 {[%clk 0:00:49]} 35. Rxe6 {[%clk 0:00:21]}  Bc8 {[%clk 0:00:47]} 36. Re7 {[%clk 0:00:18]}  b3 {[%clk 0:00:45]} 37. Bd5+ {[%clk 0:00:18]}  Kh8 {[%clk 0:00:45]} 38. Qxh6 {[%clk 0:00:14]}  Qxe7 {[%clk 0:00:33]} 39. fxe7 {[%clk 0:00:14]}  Be6 {[%clk 0:00:29]} 40. Qf8+ {[%clk 0:00:14]} 1-0


[Site "https://www.chess.com"]

[Event "Titled Tuesday Blitz August 09 Early 2022"]
[White "Mouhamad, Joachim"]
[Black "Lagno, Kateryna"]
[WhiteFideId "656410"]
[BlackFideId "14109336"]
[WhiteElo "2147"]
[BlackElo "2522"]
[Result "0-1"]
[Round "02"]
[TimeControl "180+1"]
[Date "2022.08.09"]
[WhiteClock "0:00:06"]
[BlackClock "0:01:34"]

1. e4 {[%clk 0:03:00]}  e5 {[%clk 0:02:56]} 2. Nf3 {[%clk 0:02:57]}  Nc6 {[%clk 0:02:56]} 3. Bb5 {[%clk 0:02:55]}  a6 {[%clk 0:02:56]} 4. Ba4 {[%clk 0:02:55]}  d6 {[%clk 0:02:57]} 5. c3 {[%clk 0:02:50]}  Bd7 {[%clk 0:02:57]} 6. O-O {[%clk 0:02:47]}  g6 {[%clk 0:02:56]} 7. d4 {[%clk 0:02:42]}  Bg7 {[%clk 0:02:56]} 8. h3 {[%clk 0:02:37]}  Nf6 {[%clk 0:02:55]} 9. Re1 {[%clk 0:02:29]}  O-O {[%clk 0:02:54]} 10. Bc2 {[%clk 0:02:18]}  Re8 {[%clk 0:02:52]} 11. Nbd2 {[%clk 0:02:14]}  a5 {[%clk 0:02:42]} 12. Nf1 {[%clk 0:01:58]}  a4 {[%clk 0:02:41]} 13. d5 {[%clk 0:01:41]}  Ne7 {[%clk 0:02:37]} 14. c4 {[%clk 0:01:39]}  b5 {[%clk 0:02:32]} 15. c5 {[%clk 0:01:35]}  dxc5 {[%clk 0:02:22]} 16. Be3 {[%clk 0:01:32]}  c4 {[%clk 0:02:13]} 17. b3 {[%clk 0:01:29]}  axb3 {[%clk 0:02:10]} 18. axb3 {[%clk 0:01:29]}  Rxa1 {[%clk 0:02:09]} 19. Qxa1 {[%clk 0:01:29]}  cxb3 {[%clk 0:02:09]} 20. Bxb3 {[%clk 0:01:29]}  Nxe4 {[%clk 0:02:09]} 21. Bg5 {[%clk 0:00:55]}  Nxg5 {[%clk 0:02:07]} 22. Nxg5 {[%clk 0:00:55]}  Nf5 {[%clk 0:02:01]} 23. Ne4 {[%clk 0:00:48]}  Nd4 {[%clk 0:02:01]} 24. Ba2 {[%clk 0:00:43]}  Nc2 {[%clk 0:01:54]} 25. Qc1 {[%clk 0:00:38]}  Nxe1 {[%clk 0:01:54]} 26. Qxe1 {[%clk 0:00:38]}  h6 {[%clk 0:01:47]} 27. d6 {[%clk 0:00:36]}  Be6 {[%clk 0:01:43]} 28. Bxe6 {[%clk 0:00:18]}  Rxe6 {[%clk 0:01:43]} 29. Ne3 {[%clk 0:00:15]}  cxd6 {[%clk 0:01:39]} 30. Nd5 {[%clk 0:00:14]}  Kh7 {[%clk 0:01:38]} 31. g4 {[%clk 0:00:09]}  f5 {[%clk 0:01:37]} 32. gxf5 {[%clk 0:00:06]}  gxf5 {[%clk 0:01:38]} 33. Ng3 {[%clk 0:00:07]}  Qg5 {[%clk 0:01:37]} 34. Qb1 {[%clk 0:00:06]}  e4 {[%clk 0:01:36]} 35. Ne3 {[%clk 0:00:06]}  f4 {[%clk 0:01:34]} 0-1


[Site "https://www.chess.com"]

[Event "Titled Tuesday Blitz August 09 Early 2022"]
[White "Musovic, Armin"]
[Black "Horcajuelo Rocamora, Martin"]
[WhiteFideId "939935"]
[BlackFideId "24573027"]
[WhiteElo "2255"]
[BlackElo "1882"]
[Result "1-0"]
[Round "02"]
[TimeControl "180+1"]
[Date "2022.08.09"]
[WhiteClock "0:02:48"]
[BlackClock "0:02:35"]

1. a3 {[%clk 0:03:00]}  d5 {[%clk 0:02:56]} 2. Nc3 {[%clk 0:03:01]}  e6 {[%clk 0:02:57]} 3. e4 {[%clk 0:03:02]}  d4 {[%clk 0:02:57]} 4. Nce2 {[%clk 0:03:02]}  c5 {[%clk 0:02:57]} 5. Ng3 {[%clk 0:03:02]}  Nc6 {[%clk 0:02:58]} 6. Bb5 {[%clk 0:03:03]}  Bd7 {[%clk 0:02:56]} 7. Bxc6 {[%clk 0:03:04]}  Bxc6 {[%clk 0:02:57]} 8. d3 {[%clk 0:03:05]}  Bd6 {[%clk 0:02:57]} 9. h3 {[%clk 0:03:05]}  Qc7 {[%clk 0:02:57]} 10. N1e2 {[%clk 0:03:05]}  Ne7 {[%clk 0:02:55]} 11. f4 {[%clk 0:03:05]}  Ng6 {[%clk 0:02:55]} 12. O-O {[%clk 0:03:02]}  h5 {[%clk 0:02:56]} 13. e5 {[%clk 0:03:02]}  Be7 {[%clk 0:02:55]} 14. b4 {[%clk 0:03:03]}  cxb4 {[%clk 0:02:53]} 15. axb4 {[%clk 0:03:01]}  Bxb4 {[%clk 0:02:54]} 16. Nxd4 {[%clk 0:03:01]}  Bc5 {[%clk 0:02:54]} 17. Be3 {[%clk 0:03:00]}  Rd8 {[%clk 0:02:54]} 18. c3 {[%clk 0:02:59]}  Ne7 {[%clk 0:02:47]} 19. Nxh5 {[%clk 0:02:55]}  Kf8 {[%clk 0:02:39]} 20. Qg4 {[%clk 0:02:53]}  g6 {[%clk 0:02:37]} 21. Nf6 {[%clk 0:02:49]}  Nf5 {[%clk 0:02:34]} 22. Nxf5 {[%clk 0:02:48]}  gxf5 {[%clk 0:02:35]} 23. Bxc5+ {[%clk 0:02:48]} 1-0


[Site "https://www.chess.com"]

[Event "Titled Tuesday Blitz August 09 Early 2022"]
[White "Najdin, Danil"]
[Black "Zhukov, Maksim"]
[WhiteFideId "4172426"]
[BlackFideId "34181790"]
[WhiteElo "2240"]
[BlackElo "1978"]
[Result "1-0"]
[Round "02"]
[TimeControl "180+1"]
[Date "2022.08.09"]
[WhiteClock "0:00:07"]
[BlackClock "0:00:08"]

1. e4 {[%clk 0:03:00]}  c6 {[%clk 0:02:58]} 2. d4 {[%clk 0:03:00]}  d5 {[%clk 0:02:59]} 3. exd5 {[%clk 0:03:00]}  cxd5 {[%clk 0:03:00]} 4. Bd3 {[%clk 0:03:01]}  Nc6 {[%clk 0:03:00]} 5. c3 {[%clk 0:03:01]}  Qc7 {[%clk 0:03:01]} 6. h3 {[%clk 0:02:59]}  Nf6 {[%clk 0:03:01]} 7. Nf3 {[%clk 0:02:57]}  g6 {[%clk 0:03:01]} 8. O-O {[%clk 0:02:56]}  Bf5 {[%clk 0:03:02]} 9. Re1 {[%clk 0:02:56]}  e6 {[%clk 0:03:00]} 10. Bf1 {[%clk 0:02:30]}  O-O-O {[%clk 0:02:51]} 11. Bg5 {[%clk 0:02:11]}  Be7 {[%clk 0:02:50]} 12. g4 {[%clk 0:02:02]}  Bxb1 {[%clk 0:02:46]} 13. Rxb1 {[%clk 0:02:00]}  Ne4 {[%clk 0:02:30]} 14. Bxe7 {[%clk 0:01:48]}  Qxe7 {[%clk 0:02:31]} 15. Bd3 {[%clk 0:01:49]}  f5 {[%clk 0:02:30]} 16. Kg2 {[%clk 0:01:23]}  h5 {[%clk 0:02:07]} 17. g5 {[%clk 0:01:00]}  Nxg5 {[%clk 0:01:54]} 18. Nxg5 {[%clk 0:01:00]}  Qxg5+ {[%clk 0:01:55]} 19. Kh2 {[%clk 0:01:01]}  Qf4+ {[%clk 0:01:47]} 20. Kg2 {[%clk 0:01:01]}  e5 {[%clk 0:01:47]} 21. dxe5 {[%clk 0:00:54]}  Nxe5 {[%clk 0:01:48]} 22. Bc2 {[%clk 0:00:44]}  h4 {[%clk 0:01:35]} 23. Re3 {[%clk 0:00:31]}  Rh5 {[%clk 0:01:32]} 24. Qd4 {[%clk 0:00:31]}  Rg5+ {[%clk 0:01:21]} 25. Kf1 {[%clk 0:00:31]}  Qxd4 {[%clk 0:01:06]} 26. cxd4 {[%clk 0:00:31]}  Nc4 {[%clk 0:01:06]} 27. Rc3 {[%clk 0:00:31]}  Kd7 {[%clk 0:01:02]} 28. Rd1 {[%clk 0:00:29]}  b6 {[%clk 0:00:54]} 29. b3 {[%clk 0:00:29]}  Nd6 {[%clk 0:00:53]} 30. Bd3 {[%clk 0:00:26]}  Ne4 {[%clk 0:00:51]} 31. Bb5+ {[%clk 0:00:25]}  Ke7 {[%clk 0:00:38]} 32. Rc7+ {[%clk 0:00:25]}  Kf6 {[%clk 0:00:38]} 33. Rdc1 {[%clk 0:00:26]}  Rd6 {[%clk 0:00:26]} 34. Rxa7 {[%clk 0:00:25]}  Re6 {[%clk 0:00:27]} 35. Rc2 {[%clk 0:00:18]}  Rh5 {[%clk 0:00:25]} 36. a4 {[%clk 0:00:16]}  Ng5 {[%clk 0:00:23]} 37. Kg2 {[%clk 0:00:12]}  Rh8 {[%clk 0:00:18]} 38. b4 {[%clk 0:00:10]}  Re4 {[%clk 0:00:15]} 39. Rc6+ {[%clk 0:00:10]}  Ne6 {[%clk 0:00:12]} 40. Rxb6 {[%clk 0:00:09]}  Rxd4 {[%clk 0:00:13]} 41. Raa6 {[%clk 0:00:09]}  Re4 {[%clk 0:00:10]} 42. Bd7 {[%clk 0:00:09]}  Kg5 {[%clk 0:00:08]} 43. Rxe6 {[%clk 0:00:08]}  Rxb4 {[%clk 0:00:07]} 44. Rxg6+ {[%clk 0:00:08]}  Kf4 {[%clk 0:00:08]} 45. Raf6 {[%clk 0:00:07]}  Rh5 {[%clk 0:00:08]} 46. Rg4+ {[%clk 0:00:07]} 1-0


[Site "https://www.chess.com"]